[Event "Titled Tuesday Blitz April 12 Early 2022"]
[White "O`Gorman, Tom"]
[Black "Horcajuelo Rocamora, Martin"]
[WhiteFideId "2508249"]
[BlackFideId "24573027"]
[WhiteElo "2247"]
[BlackElo "1822"]
[Result "1-0"]
[Round "03"]
[TimeControl "180+1"]
[Date "2022.04.13"]
[WhiteClock "0:02:20"]
[BlackClock "0:02:35"]

1. e4 {[%clk 0:02:59]}  e5 {[%clk 0:02:59]} 2. Nf3 {[%clk 0:02:59]}  Nc6 {[%clk 0:02:59]} 3. Nc3 {[%clk 0:02:58]}  Nf6 {[%clk 0:02:59]} 4. Be2 {[%clk 0:02:58]}  Bc5 {[%clk 0:02:57]} 5. Nxe5 {[%clk 0:02:57]}  Nxe5 {[%clk 0:02:54]} 6. d4 {[%clk 0:02:57]}  Bd6 {[%clk 0:02:54]} 7. dxe5 {[%clk 0:02:57]}  Bxe5 {[%clk 0:02:55]} 8. Nb5 {[%clk 0:02:58]}  c6 {[%clk 0:02:54]} 9. f4 {[%clk 0:02:51]}  Nxe4 {[%clk 0:02:46]} 10. fxe5 {[%clk 0:02:48]}  Qh4+ {[%clk 0:02:46]} 11. g3 {[%clk 0:02:45]}  Nxg3 {[%clk 0:02:47]} 12. Nd6+ {[%clk 0:02:42]}  Kf8 {[%clk 0:02:46]} 13. hxg3 {[%clk 0:02:37]}  Qxh1+ {[%clk 0:02:46]} 14. Kf2 {[%clk 0:02:37]}  Qh2+ {[%clk 0:02:46]} 15. Kf3 {[%clk 0:02:34]}  Qh5+ {[%clk 0:02:45]} 16. Kg2 {[%clk 0:02:34]}  Qxe5 {[%clk 0:02:45]} 17. Bf4 {[%clk 0:02:34]}  Qc5 {[%clk 0:02:35]} 18. Nxc8 {[%clk 0:02:20]} 1-0


[Site "https://www.chess.com"]

[Event "Titled Tuesday Blitz April 12 Early 2022"]
[White "Obolenskikh, Dmitry"]
[Black "Martinez Alcantara, Jose Eduardo"]
[WhiteFideId "4156013"]
[BlackFideId "3805662"]
[WhiteElo "2512"]
[BlackElo "2690"]
[Result "1/2-1/2"]
[Round "03"]
[TimeControl "180+1"]
[Date "2022.04.12"]
[WhiteClock "0:01:03"]
[BlackClock "0:00:28"]

1. e4 {[%clk 0:03:00]}  c5 {[%clk 0:02:59]} 2. Nf3 {[%clk 0:03:00]}  d6 {[%clk 0:03:00]} 3. d4 {[%clk 0:03:01]}  cxd4 {[%clk 0:03:01]} 4. Nxd4 {[%clk 0:03:01]}  Nf6 {[%clk 0:03:02]} 5. f3 {[%clk 0:03:01]}  e6 {[%clk 0:03:01]} 6. c4 {[%clk 0:03:01]}  Be7 {[%clk 0:03:02]} 7. Nc3 {[%clk 0:03:01]}  Nc6 {[%clk 0:03:02]} 8. Be3 {[%clk 0:03:01]}  O-O {[%clk 0:03:03]} 9. Be2 {[%clk 0:03:01]}  d5 {[%clk 0:03:03]} 10. exd5 {[%clk 0:02:59]}  exd5 {[%clk 0:03:04]} 11. O-O {[%clk 0:02:58]}  Nxd4 {[%clk 0:02:43]} 12. Qxd4 {[%clk 0:02:55]}  Be6 {[%clk 0:02:42]} 13. cxd5 {[%clk 0:02:52]}  Nxd5 {[%clk 0:02:41]} 14. Nxd5 {[%clk 0:02:52]}  Qxd5 {[%clk 0:02:32]} 15. Qxd5 {[%clk 0:02:51]}  Bxd5 {[%clk 0:02:33]} 16. Rfd1 {[%clk 0:02:48]}  Rfd8 {[%clk 0:02:32]} 17. Kf2 {[%clk 0:02:42]}  b6 {[%clk 0:02:16]} 18. Ba6 {[%clk 0:02:38]}  Bf6 {[%clk 0:01:59]} 19. Rd2 {[%clk 0:02:33]}  Be6 {[%clk 0:01:57]} 20. Rc2 {[%clk 0:02:12]}  Bf5 {[%clk 0:01:51]} 21. Re2 {[%clk 0:02:11]}  Bd3 {[%clk 0:01:51]} 22. Bxd3 {[%clk 0:02:10]}  Rxd3 {[%clk 0:01:52]} 23. Rc1 {[%clk 0:02:08]}  h5 {[%clk 0:01:41]} 24. b3 {[%clk 0:02:06]}  Rad8 {[%clk 0:01:25]} 25. Rcc2 {[%clk 0:02:02]}  Bc3 {[%clk 0:01:20]} 26. h3 {[%clk 0:01:53]}  Kh7 {[%clk 0:01:18]} 27. g4 {[%clk 0:01:52]}  Kg6 {[%clk 0:01:17]} 28. Kg3 {[%clk 0:01:49]}  f6 {[%clk 0:01:15]} 29. Bf4 {[%clk 0:01:49]}  R8d7 {[%clk 0:01:08]} 30. Re3 {[%clk 0:01:46]}  Bb4 {[%clk 0:00:52]} 31. Rxd3 {[%clk 0:01:44]}  Rxd3 {[%clk 0:00:53]} 32. Rc7 {[%clk 0:01:36]}  h4+ {[%clk 0:00:42]} 33. Kf2 {[%clk 0:01:26]}  Bc5+ {[%clk 0:00:35]} 34. Ke2 {[%clk 0:01:24]}  Rc3 {[%clk 0:00:34]} 35. Rxa7 {[%clk 0:01:22]}  Rc2+ {[%clk 0:00:34]} 36. Kd3 {[%clk 0:01:20]}  Rf2 {[%clk 0:00:32]} 37. Ke4 {[%clk 0:01:21]}  Re2+ {[%clk 0:00:32]} 38. Kd3 {[%clk 0:01:20]}  Rf2 {[%clk 0:00:32]} 39. Ke4 {[%clk 0:01:20]}  Rf1 {[%clk 0:00:32]} 40. Bd2 {[%clk 0:01:04]}  Rf2 {[%clk 0:00:28]} 41. Bf4 {[%clk 0:01:03]} 1/2-1/2


[Site "https://www.chess.com"]

[Event "Titled Tuesday Blitz April 12 Early 2022"]
[White "Oganian, Miran"]
[Black "Sailer, Mike"]
[WhiteFideId "4122488"]
[BlackFideId "2012901"]
[WhiteElo "2357"]
[BlackElo "2109"]
[Result "1-0"]
[Round "03"]
[TimeControl "180+1"]
[Date "2022.04.12"]
[WhiteClock "0:00:14"]
[BlackClock "0:00:03"]

1. e4 {[%clk 0:02:59]}  d5 {[%clk 0:02:59]} 2. exd5 {[%clk 0:02:59]}  Qxd5 {[%clk 0:02:59]} 3. Nc3 {[%clk 0:02:59]}  Qd6 {[%clk 0:02:59]} 4. d4 {[%clk 0:02:59]}  Nf6 {[%clk 0:02:59]} 5. Nf3 {[%clk 0:02:59]}  c6 {[%clk 0:02:59]} 6. g3 {[%clk 0:02:58]}  Bf5 {[%clk 0:02:58]} 7. Bg2 {[%clk 0:02:58]}  e6 {[%clk 0:02:59]} 8. O-O {[%clk 0:02:58]}  Be7 {[%clk 0:02:59]} 9. Bf4 {[%clk 0:02:57]}  Qd8 {[%clk 0:02:58]} 10. Re1 {[%clk 0:02:55]}  O-O {[%clk 0:02:58]} 11. h3 {[%clk 0:02:52]}  h6 {[%clk 0:02:57]} 12. Ne5 {[%clk 0:02:51]}  Nbd7 {[%clk 0:02:57]} 13. Qe2 {[%clk 0:02:49]}  Nxe5 {[%clk 0:02:54]} 14. Bxe5 {[%clk 0:02:47]}  a5 {[%clk 0:02:33]} 15. Rad1 {[%clk 0:02:46]}  a4 {[%clk 0:02:33]} 16. g4 {[%clk 0:02:37]}  Bh7 {[%clk 0:02:30]} 17. f4 {[%clk 0:02:37]}  a3 {[%clk 0:02:27]} 18. b3 {[%clk 0:02:05]}  Bb4 {[%clk 0:02:26]} 19. Qd2 {[%clk 0:01:38]}  Nd5 {[%clk 0:02:15]} 20. Bxd5 {[%clk 0:01:37]}  cxd5 {[%clk 0:02:14]} 21. f5 {[%clk 0:01:33]}  exf5 {[%clk 0:01:58]} 22. Re3 {[%clk 0:01:22]}  fxg4 {[%clk 0:01:39]} 23. Qg2 {[%clk 0:01:14]}  Qg5 {[%clk 0:01:23]} 24. Nxd5 {[%clk 0:01:10]}  Ba5 {[%clk 0:00:56]} 25. Bf4 {[%clk 0:01:04]}  Qh4 {[%clk 0:00:35]} 26. hxg4 {[%clk 0:00:55]}  Rae8 {[%clk 0:00:32]} 27. c4 {[%clk 0:00:28]}  Rxe3 {[%clk 0:00:30]} 28. Nxe3 {[%clk 0:00:27]}  Re8 {[%clk 0:00:23]} 29. Qf2 {[%clk 0:00:24]}  Qd8 {[%clk 0:00:09]} 30. Nd5 {[%clk 0:00:19]}  Re4 {[%clk 0:00:05]} 31. b4 {[%clk 0:00:14]}  Bxb4 {[%clk 0:00:03]} 32. Nxb4 {[%clk 0:00:14]} 1-0


[Site "https://www.chess.com"]

[Event "Titled Tuesday Blitz April 12 Early 2022"]
[White "Omelja, Artem"]
[Black "Svane, Rasmus"]
[WhiteFideId "14119846"]
[BlackFideId "4657101"]
[WhiteElo "2382"]
[BlackElo "2645"]
[Result "0-1"]
[Round "03"]
[TimeControl "180+1"]
[Date "2022.04.13"]
[WhiteClock "0:00:01"]
[BlackClock "0:00:34"]

1. d4 {[%clk 0:03:00]}  Nf6 {[%clk 0:02:58]} 2. c4 {[%clk 0:03:00]}  e6 {[%clk 0:02:58]} 3. Nf3 {[%clk 0:03:00]}  d5 {[%clk 0:02:57]} 4. Nc3 {[%clk 0:03:00]}  Nbd7 {[%clk 0:02:57]} 5. cxd5 {[%clk 0:02:58]}  exd5 {[%clk 0:02:57]} 6. Bg5 {[%clk 0:02:58]}  Be7 {[%clk 0:02:53]} 7. e3 {[%clk 0:02:56]}  c6 {[%clk 0:02:53]} 8. Bd3 {[%clk 0:02:54]}  h6 {[%clk 0:02:54]} 9. Bh4 {[%clk 0:02:52]}  Nh5 {[%clk 0:02:54]} 10. Bxe7 {[%clk 0:02:50]}  Qxe7 {[%clk 0:02:55]} 11. O-O {[%clk 0:02:49]}  O-O {[%clk 0:02:54]} 12. Qc2 {[%clk 0:02:49]}  Nhf6 {[%clk 0:02:44]} 13. Rab1 {[%clk 0:02:47]}  a5 {[%clk 0:02:44]} 14. a3 {[%clk 0:02:44]}  Re8 {[%clk 0:02:40]} 15. Rfc1 {[%clk 0:02:37]}  Ne4 {[%clk 0:02:35]} 16. Bxe4 {[%clk 0:02:30]}  dxe4 {[%clk 0:02:36]} 17. Nd2 {[%clk 0:02:30]}  Nf6 {[%clk 0:02:35]} 18. b4 {[%clk 0:02:28]}  axb4 {[%clk 0:02:28]} 19. axb4 {[%clk 0:02:29]}  Bf5 {[%clk 0:02:23]} 20. Na4 {[%clk 0:02:21]}  h5 {[%clk 0:02:03]} 21. Nb6 {[%clk 0:01:46]}  Ra6 {[%clk 0:01:50]} 22. Qc5 {[%clk 0:01:45]}  Qe6 {[%clk 0:01:50]} 23. b5 {[%clk 0:01:34]}  Ra2 {[%clk 0:01:49]} 24. Nf1 {[%clk 0:01:24]}  Ng4 {[%clk 0:01:46]} 25. bxc6 {[%clk 0:01:20]}  bxc6 {[%clk 0:01:30]} 26. Rc2 {[%clk 0:00:56]}  Bg6 {[%clk 0:01:25]} 27. Rxa2 {[%clk 0:00:50]}  Qxa2 {[%clk 0:01:26]} 28. Rc1 {[%clk 0:00:50]}  Qxf2+ {[%clk 0:01:26]} 29. Kh1 {[%clk 0:00:49]}  Nxe3 {[%clk 0:01:20]} 30. Nxe3 {[%clk 0:00:47]}  Qxe3 {[%clk 0:01:21]} 31. Qxc6 {[%clk 0:00:48]}  Re6 {[%clk 0:01:21]} 32. Qc8+ {[%clk 0:00:44]}  Kh7 {[%clk 0:01:21]} 33. Nd7 {[%clk 0:00:45]}  Re8 {[%clk 0:00:58]} 34. Qc5 {[%clk 0:00:45]}  Qd2 {[%clk 0:00:55]} 35. Ne5 {[%clk 0:00:12]}  e3 {[%clk 0:00:52]} 36. Qc3 {[%clk 0:00:09]}  Ra8 {[%clk 0:00:35]} 37. h3 {[%clk 0:00:01]}  Qxc3 {[%clk 0:00:34]} 0-1


[Site "https://www.chess.com"]

[Event "Titled Tuesday Blitz April 12 Early 2022"]
[White "Pajeken, Jakob Leon"]
[Black "Hernandez Jimenez, Alexander Andres"]
[WhiteFideId "12942839"]
[BlackFideId "3900452"]
[WhiteElo "2351"]
[BlackElo "2098"]
[Result "1-0"]
[Round "03"]
[TimeControl "180+1"]
[Date "2022.04.13"]
[WhiteClock "0:01:03"]
[BlackClock "0:00:04"]

1. d4 {[%clk 0:02:55]}  Nf6 {[%clk 0:02:50]} 2. c4 {[%clk 0:02:54]}  e6 {[%clk 0:02:50]} 3. Nc3 {[%clk 0:02:49]}  Bb4 {[%clk 0:02:51]} 4. Nf3 {[%clk 0:02:50]}  c5 {[%clk 0:02:50]} 5. e3 {[%clk 0:02:47]}  d5 {[%clk 0:02:48]} 6. cxd5 {[%clk 0:02:46]}  exd5 {[%clk 0:02:46]} 7. Bd2 {[%clk 0:02:41]}  Nc6 {[%clk 0:02:42]} 8. dxc5 {[%clk 0:02:37]}  O-O {[%clk 0:02:37]} 9. Bd3 {[%clk 0:02:34]}  Bxc5 {[%clk 0:02:31]} 10. O-O {[%clk 0:02:31]}  Bg4 {[%clk 0:02:30]} 11. Rc1 {[%clk 0:02:29]}  Ne5 {[%clk 0:02:26]} 12. Be2 {[%clk 0:02:28]}  Nc4 {[%clk 0:02:19]} 13. b3 {[%clk 0:02:23]}  Nxd2 {[%clk 0:02:17]} 14. Qxd2 {[%clk 0:02:24]}  Bb4 {[%clk 0:02:14]} 15. Qd4 {[%clk 0:02:19]}  Qa5 {[%clk 0:02:13]} 16. Nxd5 {[%clk 0:02:12]}  Nxd5 {[%clk 0:02:04]} 17. Qxg4 {[%clk 0:02:12]}  Nc3 {[%clk 0:01:59]} 18. Bc4 {[%clk 0:02:06]}  Qxa2 {[%clk 0:01:49]} 19. Nd4 {[%clk 0:01:56]}  b5 {[%clk 0:01:34]} 20. Bxb5 {[%clk 0:01:47]}  Nxb5 {[%clk 0:01:32]} 21. Nf5 {[%clk 0:01:47]}  g6 {[%clk 0:01:07]} 22. Qxb4 {[%clk 0:01:46]}  gxf5 {[%clk 0:00:58]} 23. Qxb5 {[%clk 0:01:46]}  Rab8 {[%clk 0:00:56]} 24. Qxf5 {[%clk 0:01:46]}  Qxb3 {[%clk 0:00:54]} 25. Rb1 {[%clk 0:01:44]}  Qe6 {[%clk 0:00:50]} 26. Qg5+ {[%clk 0:01:40]}  Qg6 {[%clk 0:00:50]} 27. Qxg6+ {[%clk 0:01:34]}  hxg6 {[%clk 0:00:49]} 28. Ra1 {[%clk 0:01:29]}  Rb7 {[%clk 0:00:44]} 29. Ra6 {[%clk 0:01:28]}  Ra8 {[%clk 0:00:36]} 30. Rfa1 {[%clk 0:01:28]}  Kg7 {[%clk 0:00:33]} 31. g4 {[%clk 0:01:28]}  f6 {[%clk 0:00:22]} 32. Kg2 {[%clk 0:01:27]}  g5 {[%clk 0:00:21]} 33. Kg3 {[%clk 0:01:26]}  Kg6 {[%clk 0:00:21]} 34. h4 {[%clk 0:01:25]}  gxh4+ {[%clk 0:00:21]} 35. Kxh4 {[%clk 0:01:26]}  Rh8+ {[%clk 0:00:20]} 36. Kg3 {[%clk 0:01:27]}  Rhh7 {[%clk 0:00:20]} 37. R1a3 {[%clk 0:01:21]}  Rhe7 {[%clk 0:00:20]} 38. f4 {[%clk 0:01:20]}  Rbd7 {[%clk 0:00:19]} 39. g5 {[%clk 0:01:19]}  Rf7 {[%clk 0:00:15]} 40. Kg4 {[%clk 0:01:19]}  Kg7 {[%clk 0:00:15]} 41. gxf6+ {[%clk 0:01:15]}  Kg6 {[%clk 0:00:14]} 42. e4 {[%clk 0:01:13]}  Rd1 {[%clk 0:00:13]} 43. f5+ {[%clk 0:01:08]}  Kh7 {[%clk 0:00:13]} 44. Rh3+ {[%clk 0:01:09]}  Kg8 {[%clk 0:00:12]} 45. Rc6 {[%clk 0:01:09]}  Rg1+ {[%clk 0:00:10]} 46. Kf4 {[%clk 0:01:09]}  Rf1+ {[%clk 0:00:05]} 47. Rf3 {[%clk 0:01:03]}  Rxf3+ {[%clk 0:00:04]} 48. Kxf3 {[%clk 0:01:04]}  a5 {[%clk 0:00:04]} 49. e5 {[%clk 0:01:04]}  Ra7 {[%clk 0:00:03]} 50. e6 {[%clk 0:01:02]}  a4 {[%clk 0:00:04]} 51. Rc8+ {[%clk 0:01:02]}  Kh7 {[%clk 0:00:04]} 52. e7 {[%clk 0:01:03]} 1-0


[Site "https://www.chess.com"]

[Event "Titled Tuesday Blitz April 12 Early 2022"]
[White "Papadiamandis, Elliot"]
[Black "Wagner, Dinara"]
[WhiteFideId "36074160"]
[BlackFideId "24157570"]
[WhiteElo "2088"]
[BlackElo "2216"]
[Result "1-0"]
[Round "03"]
[TimeControl "180+1"]
[Date "2022.04.13"]
[WhiteClock "0:01:11"]
[BlackClock "0:00:02"]

1. e4 {[%clk 0:03:00]}  c5 {[%clk 0:02:58]} 2. Nc3 {[%clk 0:03:00]}  d6 {[%clk 0:02:57]} 3. Nge2 {[%clk 0:03:01]}  Nf6 {[%clk 0:02:57]} 4. g3 {[%clk 0:03:02]}  g6 {[%clk 0:02:55]} 5. Bg2 {[%clk 0:03:03]}  Bg7 {[%clk 0:02:55]} 6. O-O {[%clk 0:03:04]}  O-O {[%clk 0:02:56]} 7. d3 {[%clk 0:03:05]}  Nc6 {[%clk 0:02:54]} 8. f4 {[%clk 0:03:05]}  Rb8 {[%clk 0:02:55]} 9. h3 {[%clk 0:03:05]}  Bd7 {[%clk 0:02:53]} 10. Be3 {[%clk 0:03:05]}  b5 {[%clk 0:02:53]} 11. Qd2 {[%clk 0:03:06]}  b4 {[%clk 0:02:53]} 12. Nd1 {[%clk 0:03:06]}  a5 {[%clk 0:02:53]} 13. f5 {[%clk 0:03:06]}  Ne5 {[%clk 0:02:51]} 14. g4 {[%clk 0:03:06]}  Bc6 {[%clk 0:02:23]} 15. Ng3 {[%clk 0:02:59]}  d5 {[%clk 0:02:21]} 16. g5 {[%clk 0:02:56]}  Ne8 {[%clk 0:02:20]} 17. Bxc5 {[%clk 0:02:56]}  dxe4 {[%clk 0:02:03]} 18. Nxe4 {[%clk 0:02:54]}  gxf5 {[%clk 0:01:57]} 19. Rxf5 {[%clk 0:02:53]}  Bxe4 {[%clk 0:01:48]} 20. Bxe4 {[%clk 0:02:53]}  Nd6 {[%clk 0:01:45]} 21. Bxd6 {[%clk 0:02:46]}  Qxd6 {[%clk 0:01:45]} 22. Nf2 {[%clk 0:02:46]}  Nc4 {[%clk 0:01:36]} 23. Qe2 {[%clk 0:02:41]}  Qg3+ {[%clk 0:01:29]} 24. Kh1 {[%clk 0:02:12]}  Ne3 {[%clk 0:01:10]} 25. Rg1 {[%clk 0:02:10]}  Nxf5 {[%clk 0:01:10]} 26. Bxf5 {[%clk 0:02:10]}  Qe5 {[%clk 0:01:09]} 27. Qg4 {[%clk 0:01:59]}  Rfd8 {[%clk 0:00:28]} 28. Be4 {[%clk 0:01:55]}  Qd4 {[%clk 0:00:26]} 29. Qf5 {[%clk 0:01:53]}  Kf8 {[%clk 0:00:22]} 30. Ng4 {[%clk 0:01:50]}  Rd6 {[%clk 0:00:18]} 31. Rf1 {[%clk 0:01:48]}  f6 {[%clk 0:00:13]} 32. Qxh7 {[%clk 0:01:45]}  Rb5 {[%clk 0:00:04]} 33. g6 {[%clk 0:01:23]}  a4 {[%clk 0:00:04]} 34. Nh6 {[%clk 0:01:23]}  Bxh6 {[%clk 0:00:03]} 35. Qxh6+ {[%clk 0:01:24]}  Ke8 {[%clk 0:00:04]} 36. g7 {[%clk 0:01:24]}  Kd7 {[%clk 0:00:02]} 37. g8=Q {[%clk 0:01:24]}  Rg5 {[%clk 0:00:03]} 38. Qa8 {[%clk 0:01:16]}  Qe3 {[%clk 0:00:03]} 39. Qb7+ {[%clk 0:01:14]}  Ke6 {[%clk 0:00:03]} 40. Bf5+ {[%clk 0:01:10]}  Ke5 {[%clk 0:00:03]} 41. Qe4+ {[%clk 0:01:10]}  Qxe4+ {[%clk 0:00:03]} 42. Bxe4 {[%clk 0:01:11]}  f5 {[%clk 0:00:02]} 43. Qxg5 {[%clk 0:01:11]} 1-0


[Site "https://www.chess.com"]

[Event "Titled Tuesday Blitz April 12 Early 2022"]
[White "Pichot, Alan"]
[Black "Sarana, Alexey"]
[WhiteFideId "110973"]
[BlackFideId "24133795"]
[WhiteElo "2579"]
[BlackElo "2666"]
[Result "0-1"]
[Round "03"]
[TimeControl "180+1"]
[Date "2022.04.12"]
[WhiteClock "0:01:16"]
[BlackClock "0:00:21"]

1. e4 {[%clk 0:03:00]}  c5 {[%clk 0:02:42]} 2. Nf3 {[%clk 0:03:00]}  d6 {[%clk 0:02:43]} 3. d4 {[%clk 0:02:59]}  cxd4 {[%clk 0:02:44]} 4. Nxd4 {[%clk 0:02:59]}  Nf6 {[%clk 0:02:44]} 5. Nc3 {[%clk 0:03:00]}  a6 {[%clk 0:02:45]} 6. Bg5 {[%clk 0:03:01]}  e6 {[%clk 0:02:45]} 7. f4 {[%clk 0:03:01]}  Nbd7 {[%clk 0:02:45]} 8. Qe2 {[%clk 0:02:59]}  Qc7 {[%clk 0:02:45]} 9. O-O-O {[%clk 0:02:59]}  b5 {[%clk 0:02:45]} 10. a3 {[%clk 0:02:59]}  Rb8 {[%clk 0:02:42]} 11. Bh4 {[%clk 0:02:58]}  b4 {[%clk 0:02:40]} 12. axb4 {[%clk 0:02:57]}  Rxb4 {[%clk 0:02:41]} 13. Be1 {[%clk 0:02:56]}  Qb6 {[%clk 0:02:37]} 14. Bf2 {[%clk 0:02:48]}  Qb7 {[%clk 0:01:59]} 15. g4 {[%clk 0:02:09]}  d5 {[%clk 0:01:25]} 16. Bg2 {[%clk 0:01:43]}  Rxb2 {[%clk 0:00:59]} 17. exd5 {[%clk 0:01:42]}  Ba3 {[%clk 0:01:00]} 18. dxe6 {[%clk 0:01:31]}  Rxc2+ {[%clk 0:00:52]} 19. Kxc2 {[%clk 0:01:27]}  Qb2+ {[%clk 0:00:53]} 20. Kd3 {[%clk 0:01:27]}  Nc5+ {[%clk 0:00:53]} 21. Ke3 {[%clk 0:01:25]}  Qxc3+ {[%clk 0:00:53]} 22. Rd3 {[%clk 0:01:25]}  Qxd3+ {[%clk 0:00:24]} 23. Qxd3 {[%clk 0:01:24]}  Nxg4+ {[%clk 0:00:25]} 24. Ke2 {[%clk 0:01:21]}  Nxd3 {[%clk 0:00:25]} 25. Bc6+ {[%clk 0:01:22]}  Kf8 {[%clk 0:00:23]} 26. Bg3 {[%clk 0:01:20]}  Nc5 {[%clk 0:00:21]} 27. Ra1 {[%clk 0:01:16]}  Bb2 {[%clk 0:00:21]} 28. Rb1 {[%clk 0:01:16]}  Bxd4 {[%clk 0:00:21]} 29. Rb8 {[%clk 0:01:16]}  Ke7 {[%clk 0:00:21]} 0-1


[Site "https://www.chess.com"]

[Event "Titled Tuesday Blitz April 12 Early 2022"]
[White "Politov, Pavel Y."]
[Black "Jaskolka, Tomasz"]
[WhiteFideId "24110515"]
[BlackFideId "1170791"]
[WhiteElo "2090"]
[BlackElo "2073"]
[Result "0-1"]
[Round "03"]
[TimeControl "180+1"]
[Date "2022.04.13"]
[WhiteClock "0:00:08"]
[BlackClock "0:00:32"]

1. e4 {[%clk 0:01:50]}  c5 {[%clk 0:02:58]} 2. Nf3 {[%clk 0:01:49]}  e6 {[%clk 0:02:58]} 3. d4 {[%clk 0:01:50]}  cxd4 {[%clk 0:02:59]} 4. Nxd4 {[%clk 0:01:50]}  Nc6 {[%clk 0:02:58]} 5. Nc3 {[%clk 0:01:50]}  Qc7 {[%clk 0:02:59]} 6. Be3 {[%clk 0:01:49]}  a6 {[%clk 0:02:58]} 7. Qf3 {[%clk 0:01:49]}  Nf6 {[%clk 0:02:49]} 8. O-O-O {[%clk 0:01:42]}  Be7 {[%clk 0:02:46]} 9. Qg3 {[%clk 0:01:41]}  d6 {[%clk 0:02:42]} 10. Qxg7 {[%clk 0:01:39]}  Rg8 {[%clk 0:02:42]} 11. Qh6 {[%clk 0:01:38]}  b5 {[%clk 0:02:39]} 12. f3 {[%clk 0:01:11]}  Bb7 {[%clk 0:02:36]} 13. g4 {[%clk 0:01:07]}  b4 {[%clk 0:02:08]} 14. Nce2 {[%clk 0:01:05]}  Rc8 {[%clk 0:02:04]} 15. Rd2 {[%clk 0:00:55]}  Qa5 {[%clk 0:01:45]} 16. Kb1 {[%clk 0:00:48]}  Ne5 {[%clk 0:01:45]} 17. g5 {[%clk 0:00:43]}  Nfd7 {[%clk 0:01:36]} 18. Qxh7 {[%clk 0:00:41]}  Rf8 {[%clk 0:01:32]} 19. Nf4 {[%clk 0:00:31]}  Nc5 {[%clk 0:01:11]} 20. g6 {[%clk 0:00:31]}  fxg6 {[%clk 0:01:07]} 21. Nxg6 {[%clk 0:00:29]}  Rf7 {[%clk 0:01:04]} 22. Qg8+ {[%clk 0:00:27]}  Bf8 {[%clk 0:00:59]} 23. Nxf8 {[%clk 0:00:23]}  Rxf8 {[%clk 0:00:58]} 24. Qh7 {[%clk 0:00:20]}  Nxf3 {[%clk 0:00:45]} 25. Nxf3 {[%clk 0:00:18]}  Bxe4 {[%clk 0:00:46]} 26. Qh5+ {[%clk 0:00:17]}  Kd7 {[%clk 0:00:42]} 27. Bg2 {[%clk 0:00:16]}  b3 {[%clk 0:00:40]} 28. Ne5+ {[%clk 0:00:13]}  Kc7 {[%clk 0:00:40]} 29. axb3 {[%clk 0:00:08]}  Nxb3 {[%clk 0:00:32]} 0-1


[Site "https://www.chess.com"]

[Event "Titled Tuesday Blitz April 12 Early 2022"]
[White "Rudzinska, Michalina"]
[Black "Omariev, Maksim"]
[WhiteFideId "1172883"]
[BlackFideId "4193423"]
[WhiteElo "1904"]
[BlackElo "2489"]
[Result "0-1"]
[Round "03"]
[TimeControl "180+1"]
[Date "2022.04.13"]
[WhiteClock "0:00:08"]
[BlackClock "0:00:11"]

1. e4 {[%clk 0:02:53]}  h5 {[%clk 0:03:00]} 2. d4 {[%clk 0:02:51]}  h4 {[%clk 0:03:01]} 3. Nc3 {[%clk 0:02:49]}  c6 {[%clk 0:02:54]} 4. f4 {[%clk 0:02:45]}  d5 {[%clk 0:02:53]} 5. e5 {[%clk 0:02:45]}  h3 {[%clk 0:02:49]} 6. g3 {[%clk 0:02:43]}  Bf5 {[%clk 0:02:33]} 7. Be2 {[%clk 0:02:44]}  e6 {[%clk 0:02:32]} 8. Nf3 {[%clk 0:02:43]}  c5 {[%clk 0:02:31]} 9. Be3 {[%clk 0:02:41]}  Nd7 {[%clk 0:02:30]} 10. O-O {[%clk 0:02:39]}  Nh6 {[%clk 0:02:21]} 11. dxc5 {[%clk 0:02:30]}  Ng4 {[%clk 0:02:19]} 12. Bd4 {[%clk 0:02:26]}  Bxc5 {[%clk 0:02:18]} 13. Nb5 {[%clk 0:02:17]}  Qb6 {[%clk 0:02:18]} 14. Nd6+ {[%clk 0:02:16]}  Kf8 {[%clk 0:02:18]} 15. Nxf5 {[%clk 0:02:14]}  exf5 {[%clk 0:02:18]} 16. c3 {[%clk 0:02:11]}  Qxb2 {[%clk 0:01:43]} 17. Rb1 {[%clk 0:02:01]}  Qxa2 {[%clk 0:01:43]} 18. Rxb7 {[%clk 0:02:01]}  Bxd4+ {[%clk 0:01:39]} 19. Nxd4 {[%clk 0:01:55]}  Nc5 {[%clk 0:01:14]} 20. Rc7 {[%clk 0:01:47]}  Ne3 {[%clk 0:01:07]} 21. Qe1 {[%clk 0:01:38]}  Nxf1 {[%clk 0:00:56]} 22. Qxf1 {[%clk 0:01:37]}  Ne6 {[%clk 0:00:48]} 23. Nxe6+ {[%clk 0:01:33]}  fxe6 {[%clk 0:00:49]} 24. Qf2 {[%clk 0:01:28]}  Kg8 {[%clk 0:00:48]} 25. Qf3 {[%clk 0:01:11]}  Rb8 {[%clk 0:00:43]} 26. g4 {[%clk 0:01:02]}  Rh4 {[%clk 0:00:20]} 27. gxf5 {[%clk 0:00:55]}  exf5 {[%clk 0:00:21]} 28. c4 {[%clk 0:00:33]}  Rg4+ {[%clk 0:00:15]} 29. Kh1 {[%clk 0:00:13]}  Rb1+ {[%clk 0:00:12]} 30. Bf1 {[%clk 0:00:13]}  Qg2+ {[%clk 0:00:09]} 31. Qxg2 {[%clk 0:00:08]}  hxg2+ {[%clk 0:00:10]} 32. Kg1 {[%clk 0:00:08]}  gxf1=Q# {[%clk 0:00:11]} 0-1


[Site "https://www.chess.com"]